lending/lending_fUSD_20240723
["ID","MTS","AMOUNT","RATE_DAILY","PERIOD"]
[332978634,1721718633737,-3434.7094964,0.00010766,2]
[332978635,1721718633748,-2906.62554695,0.00010766,2]
[332978636,1721718633760,-664.6942329,0.00010766,2]
[332978637,1721718633769,-1669.0,0.00010766,2]
[332978638,1721718633781,-200.0,0.000108,3]
[332978639,1721718633791,-3000.0,0.0001085,2]
[332978640,1721718633800,-5958.21435349,0.0001089,2]
[332978641,1721718633811,-391.78564651,0.0001089,2]
[332978642,1721718633821,-158.12858035,0.00010899,2]
[332978644,1721718633830,-200.0,0.000109,3]
[332978646,1721718633839,-150.0,0.00010956,2]
[332978648,1721718633850,-1618.15084334,0.00010957,2]
[332978650,1721718633861,-150.0,0.00010958,2]
[332978652,1721718633871,-150.0,0.00010958,2]
[332978654,1721718633881,-500.0,0.00010958,2]
[332978656,1721718633890,-249.642,0.00010958,2]
[332978658,1721718633899,-621.0,0.00010958,2]
[332978660,1721718633908,-549.0,0.00010958,2]
[332978662,1721718633918,-1539.51,0.00010958,2]
[332978664,1721718633928,-2000.0,0.00010958,2]
[332978666,1721718633937,-200.0,0.00010958,2]
[332978668,1721718633947,-164.93126673,0.00010959,2]
[332978670,1721718633957,-159.34809172,0.00010959,2]
[332978672,1721718633967,-155.27486956,0.00010959,2]
[332978674,1721718633977,-155.94352259,0.00010959,2]
[332978676,1721718633986,-155.29363345,0.00010959,2]
[332978678,1721718633997,-383.06184653,0.00010959,2]
[332978680,1721718634006,-5195.14876951,0.00010959,2]
[332978684,1721718634018,-335.08950845,0.00010959,2]
[332978687,1721718634029,-276.52,0.00010959,2]
[332978691,1721718634044,-337.01913656,0.00010959,2]
[332978694,1721718634055,-455.85444,0.00010959,2]
[332978698,1721718634066,-472.14322502,0.00010959,2]
[332978701,1721718634077,-554.36898014,0.00010959,2]
[332978705,1721718634087,-194.28296135,0.00010959,2]
[332978707,1721718634099,-558.26184391,0.00010959,2]
[332978709,1721718634108,-6.03885508,0.00010959,2]
[332978713,1721718634145,-379.34956382,0.00010959,2]
[332978716,1721718634156,-870.37316986,0.00010959,2]
[332978718,1721718634165,-183.93508261,0.00010959,2]
[332978720,1721718634174,-98.75854312,0.00010959,2]
[332978722,1721718634186,-151.24145688,0.00010959,2]
[332978724,1721718634195,-154.96322058,0.00010959,2]
[332978726,1721718634206,-583.32677942,0.00010959,2]
[332978728,1721718634215,-150.0,0.00010959,2]
[332978730,1721718634224,-2688.714327,0.00010959,2]
[332978732,1721718634235,-1003.44,0.00010959,2]
[332978734,1721718634247,-3401.68410139,0.00010959,2]
[332978736,1721718634258,-3255.09037,0.00010959,2]
[332978738,1721718634269,-9595.14120161,0.00010959,2]
[332978740,1721718634278,-1500.0,0.00010959,5]
[332978742,1721718634288,-244.7509043,0.0001096,2]
[332978744,1721718634298,-1000.0,0.00010961,2]
[332978745,1721718634307,-210.45610073,0.00010996,2]
[332978746,1721718634316,-181.3784872,0.00010997,2]
[332978747,1721718634326,-487.48766724,0.00010997,2]
[332978748,1721718634335,-529.91638382,0.00010997,2]
[332978749,1721718634345,-242.90778109,0.00010997,2]
[332978750,1721718634355,-559.59,0.00010997,2]
[332978751,1721718634364,-153.57172657,0.00010997,2]
[332978752,1721718634375,-432.000004,0.00010997,2]
[332978753,1721718634415,-2697.05711625,0.00010997,2]
[332978754,1721718634426,-389.84087267,0.00010997,2]
[332978755,1721718634437,-711.72882134,0.00010997,2]
[332978768,1721718639188,-222.95946683,0.00010959,2]
[332978769,1721718639198,-28.98803317,0.00010997,2]
[332978770,1721718639301,-593.383426,0.00010997,2]
[332978771,1721718639311,-2938.54,0.00010997,2]
[332978772,1721718639321,-1743.3,0.00010997,2]
[332978773,1721718639330,-161.11297823,0.00010997,2]
[332978774,1721718639442,-2790.08807512,0.00010997,2]
[332978775,1721718639454,-3133.78894665,0.00010997,2]
[332978776,1721718639465,-2848.12,0.00010997,2]
[332978777,1721718639474,-3288.58,0.00010997,2]
[332978778,1721718639484,-500.0,0.00010997,2]
[332978779,1721718639494,-500.0,0.00010997,2]
[332978780,1721718639505,-992.49,0.00010997,2]
[332978781,1721718639515,-163.08131058,0.00010997,2]
[332978782,1721718639526,-993.55,0.00010997,2]
[332978783,1721718639535,-671.32,0.00010997,2]
[332978784,1721718639545,-700.41,0.00010997,2]
[332978785,1721718639555,-2519.89,0.00010997,2]
[332978786,1721718639565,-479.88347282,0.00010997,2]
[332978787,1721718639574,-500.0,0.00010997,2]
[332978788,1721718639584,-4478.12,0.00010997,2]
[332978789,1721718639595,-7804.04,0.00010997,2]
[332978790,1721718639604,-1796.66,0.00010997,2]
[332978791,1721718639614,-500.0,0.00010997,2]
[332978792,1721718639624,-1388.18,0.00010997,2]
[332978793,1721718639634,-500.0,0.00010997,2]
[332978794,1721718639644,-1683.64880584,0.00010997,2]
[332978795,1721718639654,-500.0,0.00010998,2]
[332978796,1721718639663,-500.0,0.00010998,2]
[332978797,1721718639673,-500.0,0.00010998,2]
[332978798,1721718639682,-500.0,0.00010998,2]
[332978799,1721718639692,-5006.57,0.00010998,2]
[332978800,1721718639703,-4214.23198786,0.00010998,2]
[332978801,1721718639718,-792.33801214,0.00010998,2]
[332978802,1721718639727,-1941.71639786,0.00010998,2]
[332978803,1721718639738,-3064.85360214,0.00010998,2]
[332978804,1721718639749,-2938.54,0.00010998,2]
[332978805,1721718639758,-666.4172438,0.00010998,2]
[332978806,1721718639770,-399.08923112,0.00010998,2]
[332978807,1721718639786,-1873.03352508,0.00010998,2]
[332978808,1721718639795,-827.23608747,0.00010998,2]
[332978809,1721718639815,-1662.12038026,0.00010998,2]
[332978834,1721718640172,-449.18353227,0.00010998,2]
[332978836,1721718640182,-50.81610963,0.00010998,2]
[332978843,1721718640290,-861.50000005,0.00010998,2]
[332978844,1721718640376,-830.98389032,0.00010998,2]
[332978845,1721718640386,-1743.3,0.00010998,2]
[332978846,1721718640395,-1743.3,0.00010998,2]
[332978847,1721718640405,-6084.99,0.00010998,2]
[332978848,1721718640415,-6084.99,0.00010998,2]
[332978849,1721718640425,-6084.99,0.00010998,2]
[332978850,1721718640434,-2848.12,0.00010998,2]
[332978852,1721718640444,-2848.12,0.00010998,2]
[332978854,1721718640454,-2848.12,0.00010998,2]
[332978856,1721718640463,-500.0,0.00010998,2]
[332978858,1721718640473,-500.0,0.00010998,2]
[332978860,1721718640482,-500.0,0.00010998,2]
[332978861,1721718640492,-500.0,0.00010998,2]
[332978864,1721718640503,-500.0,0.00010998,2]
[332978865,1721718640512,-500.0,0.00010998,2]
[332978867,1721718640522,-992.49,0.00010998,2]
[332978869,1721718640531,-992.49,0.00010998,2]
[332978871,1721718640541,-992.49,0.00010998,2]
[332978873,1721718640551,-993.55,0.00010998,2]
[332978876,1721718640561,-993.55,0.00010998,2]
[332978878,1721718640571,-993.55,0.00010998,2]
[332978880,1721718640580,-671.32,0.00010998,2]
[332978882,1721718640589,-671.32,0.00010998,2]
[332978884,1721718640599,-671.32,0.00010998,2]
[332978886,1721718640608,-700.41,0.00010998,2]
[332978888,1721718640618,-700.41,0.00010998,2]
[332978890,1721718640628,-700.41,0.00010998,2]
[332978891,1721718640637,-2519.89,0.00010998,2]
[332978893,1721718640646,-2519.89,0.00010998,2]
[332978895,1721718640655,-2519.89,0.00010998,2]
[332978898,1721718640665,-500.0,0.00010998,2]
[332978900,1721718640675,-500.0,0.00010998,2]
[332978902,1721718640684,-500.0,0.00010998,2]
[332978904,1721718640694,-4478.12,0.00010998,2]
[332978906,1721718640704,-4478.12,0.00010998,2]
[332978908,1721718640714,-4478.12,0.00010998,2]
[332978910,1721718640723,-7804.04,0.00010998,2]
[332978912,1721718640733,-7804.04,0.00010998,2]
[332978914,1721718640742,-7804.04,0.00010998,2]
[332978915,1721718640752,-1796.66,0.00010998,2]
[332978918,1721718640762,-1796.66,0.00010998,2]
[332978919,1721718640771,-1796.66,0.00010998,2]
[332978921,1721718640783,-500.0,0.00010998,2]
[332978923,1721718640792,-500.0,0.00010998,2]
[332978925,1721718640802,-500.0,0.00010998,2]
[332978927,1721718640811,-1388.18,0.00010998,2]
[332978929,1721718640820,-1388.18,0.00010998,2]
[332978930,1721718640830,-1388.18,0.00010998,2]
[332978932,1721718640839,-500.0,0.00010998,2]
[332978935,1721718640853,-500.0,0.00010998,2]
[332978937,1721718640866,-500.0,0.00010998,2]
[332978939,1721718640879,-521.0,0.00010999,2]
[332978941,1721718640889,-8660.23341222,0.00010999,2]
[332978943,1721718640899,-2255.69644288,0.00010999,2]
[332978944,1721718640909,-151.0,0.00010999,2]
[332978946,1721718640919,-500.0,0.00010999,2]
[332978948,1721718640930,-500.0,0.00010999,2]
[332978950,1721718640939,-500.0,0.00010999,2]
[332978952,1721718640949,-471.77345602,0.00010999,2]
[332978954,1721718640958,-870.151893,0.00010999,2]
[332978956,1721718640968,-870.151893,0.00010999,2]
[332978958,1721718640979,-2938.54,0.00010999,2]
[332978960,1721718640989,-2938.54,0.00010999,2]
[332978962,1721718641000,-2938.54,0.00010999,2]
[332978964,1721718641010,-2938.54,0.00010999,2]
[332978966,1721718641019,-2938.54,0.00010999,2]
[332978968,1721718641030,-2938.54,0.00010999,2]
[332978970,1721718641040,-2938.54,0.00010999,2]
[332978972,1721718641049,-2938.54,0.00010999,2]
[332978974,1721718641058,-2938.54,0.00010999,2]
[332978976,1721718641067,-2938.54,0.00010999,2]
[332978978,1721718641076,-2938.54,0.00010999,2]
[332978980,1721718641086,-2938.54,0.00010999,2]
[332978982,1721718641096,-2938.54,0.00010999,2]
[332978984,1721718641105,-2938.54,0.00010999,2]
[332978985,1721718641115,-2938.54,0.00010999,2]
[332978987,1721718641124,-2938.54,0.00010999,2]
[332978989,1721718641135,-2938.54,0.00010999,2]
[332978991,1721718641144,-2938.54,0.00010999,2]
[332978993,1721718641154,-2938.54,0.00010999,2]
[332978995,1721718641163,-2938.57100948,0.00010999,2]
[332978997,1721718641172,-1743.3,0.00010999,2]
[332978999,1721718641181,-1743.3,0.00010999,2]
[332979001,1721718641191,-1743.3,0.00010999,2]
[332979003,1721718641201,-1743.3,0.00010999,2]
[332979005,1721718641211,-1743.3,0.00010999,2]
[332979007,1721718641220,-1743.3,0.00010999,2]
[332979009,1721718641229,-1743.3,0.00010999,2]
[332979011,1721718641238,-1743.3,0.00010999,2]
[332979013,1721718641251,-1743.3,0.00010999,2]
[332979015,1721718641260,-1743.3,0.00010999,2]
[332979017,1721718641270,-1743.3,0.00010999,2]
[332979019,1721718641279,-1743.3,0.00010999,2]
[332979021,1721718641288,-1743.3,0.00010999,2]
[332979023,1721718641298,-1743.3,0.00010999,2]
[332979025,1721718641307,-1743.3,0.00010999,2]
[332979027,1721718641316,-1743.3,0.00010999,2]
[332979029,1721718641325,-1743.3,0.00010999,2]
[332979031,1721718641337,-1743.3,0.00010999,2]
[332979033,1721718641346,-1743.3,0.00010999,2]
[332979035,1721718641355,-1743.52278928,0.00010999,2]
[332979037,1721718641364,-6084.99,0.00010999,2]
[332979039,1721718641374,-6084.99,0.00010999,2]
[332979041,1721718641383,-6084.99,0.00010999,2]
[332979043,1721718641392,-5930.1391585,0.00010999,2]
[332979045,1721718641406,-154.8508415,0.00010999,2]
[332979047,1721718641415,-6084.99,0.00010999,2]
[332979049,1721718641424,-6084.99,0.00010999,2]
[332979051,1721718641434,-6084.99,0.00010999,2]
[332979053,1721718641443,-6084.99,0.00010999,2]
[332979055,1721718641453,-6084.99,0.00010999,2]
[332979057,1721718641462,-6084.99,0.00010999,2]
[332979059,1721718641472,-6084.99,0.00010999,2]
[332979061,1721718641481,-6084.99,0.00010999,2]
[332979063,1721718641490,-6084.99,0.00010999,2]
[332979064,1721718641500,-6084.99,0.00010999,2]
[332979066,1721718641511,-6084.99,0.00010999,2]
[332979068,1721718641520,-3174.50607439,0.00010999,2]
[332979071,1721718641536,-2910.48392561,0.00010999,2]
[332979073,1721718641545,-6084.99,0.00010999,2]
[332979075,1721718641554,-6084.99,0.00010999,2]
[332979077,1721718641563,-6084.99,0.00010999,2]
[332979079,1721718641572,-6085.1234314,0.00010999,2]
[332979080,1721718641581,-2848.12,0.00010999,2]
[332979082,1721718641590,-2848.12,0.00010999,2]
[332979084,1721718641600,-2848.12,0.00010999,2]
[332979086,1721718641609,-2848.12,0.00010999,2]
[332979087,1721718641618,-2848.12,0.00010999,2]
[332979088,1721718641627,-2848.12,0.00010999,2]
[332979089,1721718641636,-2848.12,0.00010999,2]
[332979090,1721718641645,-2848.12,0.00010999,2]
[332979091,1721718641655,-448.41904889,0.00010999,2]
[332979092,1721718642968,-409.15439696,0.00010999,2]
[332979111,1721718643427,-1990.54655415,0.00010999,2]
[332979112,1721718643437,-2848.12,0.00010999,2]
[332979113,1721718643447,-2848.12,0.00010999,2]
[332979114,1721718643457,-2848.12,0.00010999,2]
[332979115,1721718643466,-2848.12,0.00010999,2]
[332979116,1721718643476,-2848.12,0.00010999,2]
[332979117,1721718643485,-2848.12,0.00010999,2]
[332979118,1721718643494,-2848.12,0.00010999,2]
[332979119,1721718643505,-2848.12,0.00010999,2]
[332979120,1721718643515,-2848.12,0.00010999,2]
[332979121,1721718643524,-2848.12,0.00010999,2]
[332979122,1721718643534,-2848.20738837,0.00010999,2]
[332979123,1721718643543,-500.0,0.00010999,2]
[332979124,1721718643552,-500.0,0.00010999,2]
[332979125,1721718643562,-152.70811149,0.00010999,2]
[332979126,1721718643571,-500.0,0.00010999,2]
[332979127,1721718643580,-500.0,0.00010999,2]
[332979128,1721718643589,-500.0,0.00010999,2]
[332979129,1721718643598,-500.0,0.00010999,2]
[332979130,1721718643608,-500.0,0.00010999,2]
[332979131,1721718643618,-500.0,0.00010999,2]
[332979132,1721718643628,-500.0,0.00010999,2]
[332979133,1721718643637,-500.0,0.00010999,2]
[332979134,1721718643647,-500.0,0.00010999,2]
[332979135,1721718643656,-500.0,0.00010999,2]
[332979136,1721718643665,-500.0,0.00010999,2]
[332979137,1721718643675,-500.0,0.00010999,2]
[332979138,1721718643684,-500.0,0.00010999,2]
[332979139,1721718643694,-500.0,0.00010999,2]
[332979140,1721718643703,-500.0,0.00010999,2]
[332979141,1721718643712,-500.0,0.00010999,2]
[332979142,1721718643721,-177.03105591,0.00010999,2]
[332979143,1721718643731,-992.49,0.00010999,2]
[332979144,1721718643740,-992.49,0.00010999,2]
[332979145,1721718643750,-992.49,0.00010999,2]
[332979146,1721718643759,-992.49,0.00010999,2]
[332979147,1721718643768,-992.49,0.00010999,2]
[332979148,1721718643778,-992.49,0.00010999,2]
[332979149,1721718643790,-992.49,0.00010999,2]
[332979150,1721718643800,-992.49,0.00010999,2]
[332979151,1721718643809,-992.49,0.00010999,2]
[332979152,1721718643819,-992.49,0.00010999,2]
[332979153,1721718643828,-992.49,0.00010999,2]
[332979154,1721718643837,-992.49,0.00010999,2]
[332979155,1721718643846,-992.49,0.00010999,2]
[332979156,1721718643856,-992.49,0.00010999,2]
[332979157,1721718643865,-992.49,0.00010999,2]
[332979158,1721718643874,-992.49,0.00010999,2]
[332979159,1721718643883,-992.49,0.00010999,2]
[332979160,1721718643893,-992.49,0.00010999,2]
[332979161,1721718643902,-992.49,0.00010999,2]
[332979162,1721718643911,-992.64599356,0.00010999,2]
[332979163,1721718643921,-993.55,0.00010999,2]
[332979164,1721718643930,-993.55,0.00010999,2]
[332979165,1721718643939,-993.55,0.00010999,2]
[332979166,1721718643948,-993.55,0.00010999,2]
[332979167,1721718643958,-993.55,0.00010999,2]
[332979168,1721718643967,-993.55,0.00010999,2]
[332979169,1721718643976,-993.55,0.00010999,2]
[332979170,1721718643986,-993.55,0.00010999,2]
[332979171,1721718643996,-993.55,0.00010999,2]
[332979172,1721718644009,-993.55,0.00010999,2]
[332979173,1721718644022,-993.55,0.00010999,2]
[332979174,1721718644031,-671.32,0.00010999,2]
[332979175,1721718644041,-993.55,0.00010999,2]
[332979176,1721718644051,-671.32,0.00010999,2]
[332979177,1721718644060,-993.55,0.00010999,2]
[332979178,1721718644071,-671.32,0.00010999,2]
[332979179,1721718644080,-671.32,0.00010999,2]
[332979180,1721718644090,-671.32,0.00010999,2]
[332979181,1721718644100,-700.41,0.00010999,2]
[332979182,1721718644111,-671.32,0.00010999,2]
[332979183,1721718644120,-700.41,0.00010999,2]
[332979184,1721718644130,-700.41,0.00010999,2]
[332979185,1721718644141,-671.32,0.00010999,2]
[332979186,1721718644363,-700.41,0.00010999,2]
[332979187,1721718644378,-671.32,0.00010999,2]
[332979188,1721718644388,-700.41,0.00010999,2]
[332979189,1721718644397,-671.32,0.00010999,2]
[332979190,1721718644407,-700.41,0.00010999,2]
[332979191,1721718644416,-671.32,0.00010999,2]
[332979192,1721718644425,-993.55,0.00010999,2]
[332979193,1721718644434,-671.32,0.00010999,2]
[332979194,1721718644444,-993.55,0.00010999,2]
[332979195,1721718644453,-700.41,0.00010999,2]
[332979196,1721718644462,-671.32,0.00010999,2]
[332979197,1721718644472,-993.55,0.00010999,2]
[332979198,1721718644481,-700.41,0.00010999,2]
[332979199,1721718644492,-671.32,0.00010999,2]
[332979200,1721718644502,-993.55,0.00010999,2]
[332979201,1721718644512,-700.41,0.00010999,2]
[332979202,1721718644522,-671.32,0.00010999,2]
[332979203,1721718644531,-993.55,0.00010999,2]
[332979204,1721718644540,-700.41,0.00010999,2]
[332979205,1721718644550,-993.55,0.00010999,2]
[332979206,1721718644559,-671.32,0.00010999,2]
[332979207,1721718644568,-700.41,0.00010999,2]
[332979208,1721718644578,-993.70434854,0.00010999,2]
[332979209,1721718644588,-671.32,0.00010999,2]
[332979210,1721718644597,-700.41,0.00010999,2]
[332979211,1721718644606,-671.32,0.00010999,2]
[332979212,1721718644615,-700.41,0.00010999,2]
[332979213,1721718644624,-671.32,0.00010999,2]
[332979214,1721718644633,-700.41,0.00010999,2]
[332979215,1721718644642,-700.41,0.00010999,2]
[332979216,1721718644651,-671.32,0.00010999,2]
[332979217,1721718644661,-700.41,0.00010999,2]
[332979218,1721718644670,-671.52324794,0.00010999,2]
[332979219,1721718644680,-700.41,0.00010999,2]
[332979220,1721718644689,-700.41,0.00010999,2]
[332979221,1721718644698,-700.41,0.00010999,2]
[332979222,1721718644707,-700.61001595,0.00010999,2]
[332979223,1721718644716,-2519.89,0.00010999,2]
[332979224,1721718644726,-2519.89,0.00010999,2]
[332979225,1721718644735,-2519.89,0.00010999,2]
[332979226,1721718644745,-2519.89,0.00010999,2]
[332979227,1721718644757,-2519.89,0.00010999,2]
[332979228,1721718644767,-2519.89,0.00010999,2]
[332979229,1721718644777,-2519.89,0.00010999,2]
[332979230,1721718644788,-2519.89,0.00010999,2]
[332979231,1721718644799,-2519.89,0.00010999,2]
[332979232,1721718644810,-2519.89,0.00010999,2]
[332979233,1721718644820,-2519.89,0.00010999,2]
[332979234,1721718644832,-2519.89,0.00010999,2]
[332979235,1721718644842,-2519.89,0.00010999,2]
[332979236,1721718644851,-2519.89,0.00010999,2]
[332979237,1721718644863,-2519.89,0.00010999,2]
[332979238,1721718644873,-2519.89,0.00010999,2]
[332979239,1721718644882,-2519.89,0.00010999,2]
[332979240,1721718644892,-2519.89,0.00010999,2]
[332979241,1721718644901,-2519.89,0.00010999,2]
[332979242,1721718644910,-2519.99797525,0.00010999,2]
[332979243,1721718644919,-500.0,0.00010999,2]
[332979244,1721718644929,-500.0,0.00010999,2]
[332979245,1721718644938,-500.0,0.00010999,2]
[332979246,1721718644947,-500.0,0.00010999,2]
[332979247,1721718644956,-500.0,0.00010999,2]
[332979248,1721718644965,-500.0,0.00010999,2]
[332979249,1721718644974,-500.0,0.00010999,2]
[332979250,1721718644983,-500.0,0.00010999,2]
[332979251,1721718644992,-500.0,0.00010999,2]
[332979252,1721718645001,-500.0,0.00010999,2]
[332979253,1721718645010,-500.0,0.00010999,2]
[332979254,1721718645019,-500.0,0.00010999,2]
[332979255,1721718645028,-500.0,0.00010999,2]
[332979256,1721718645037,-446.07064468,0.00010999,2]
[332979257,1721718645046,-4478.12,0.00010999,2]
[332979258,1721718645055,-4478.12,0.00010999,2]
[332979259,1721718645065,-4478.12,0.00010999,2]
[332979260,1721718645074,-4478.12,0.00010999,2]
[332979261,1721718645083,-4478.12,0.00010999,2]
[332979262,1721718645092,-4478.12,0.00010999,2]
[332979263,1721718645101,-4478.12,0.00010999,2]
[332979264,1721718645110,-4478.12,0.00010999,2]
[332979265,1721718645119,-4478.12,0.00010999,2]
[332979266,1721718645129,-4478.12,0.00010999,2]
[332979267,1721718645138,-4478.12,0.00010999,2]
[332979268,1721718645147,-4478.12,0.00010999,2]
[332979269,1721718645156,-4478.12,0.00010999,2]
[332979270,1721718645166,-4478.12,0.00010999,2]
[332979271,1721718645175,-4478.12,0.00010999,2]
[332979272,1721718645184,-4478.12,0.00010999,2]
[332979273,1721718645195,-4478.12,0.00010999,2]
[332979274,1721718645204,-4478.12,0.00010999,2]
[332979275,1721718645213,-4478.12,0.00010999,2]
[332979276,1721718645222,-4478.32003852,0.00010999,2]
[332979277,1721718645231,-7804.04,0.00010999,2]
[332979278,1721718645240,-7804.04,0.00010999,2]
[332979279,1721718645250,-7804.04,0.00010999,2]
[332979280,1721718645259,-7804.04,0.00010999,2]
[332979281,1721718645269,-7804.04,0.00010999,2]
[332979282,1721718645278,-7804.04,0.00010999,2]
[332979283,1721718645287,-7804.04,0.00010999,2]
[332979284,1721718645296,-7804.04,0.00010999,2]
[332979285,1721718645305,-1796.66,0.00010999,2]
[332979286,1721718645314,-7804.04,0.00010999,2]
[332979287,1721718645324,-1796.66,0.00010999,2]
[332979288,1721718645333,-7804.04,0.00010999,2]
[332979289,1721718645342,-7804.04,0.00010999,2]
[332979290,1721718645351,-1796.66,0.00010999,2]
[332979291,1721718645360,-7804.04,0.00010999,2]
[332979292,1721718645369,-1796.66,0.00010999,2]
[332979293,1721718645378,-7804.04,0.00010999,2]
[332979294,1721718645387,-1796.66,0.00010999,2]
[332979295,1721718645397,-1796.66,0.00010999,2]
[332979296,1721718645407,-7804.04,0.00010999,2]
[332979297,1721718645416,-1796.66,0.00010999,2]
[332979298,1721718645426,-7804.04,0.00010999,2]
[332979299,1721718645437,-1796.66,0.00010999,2]
[332979300,1721718645447,-7804.04,0.00010999,2]
[332979301,1721718645457,-1796.66,0.00010999,2]
[332979302,1721718645467,-1796.66,0.00010999,2]
[332979303,1721718645477,-7804.04,0.00010999,2]
[332979304,1721718645486,-1796.66,0.00010999,2]
[332979305,1721718645496,-7804.04,0.00010999,2]
[332979306,1721718645506,-1796.66,0.00010999,2]
[332979307,1721718645516,-7804.04,0.00010999,2]
[332979308,1721718645526,-1796.66,0.00010999,2]
[332979309,1721718645535,-1796.66,0.00010999,2]
[332979310,1721718645545,-2719.93495024,0.00010999,2]
[332979311,1721718645560,-292.35005528,0.00010999,2]
[332979312,1721718645571,-4791.7893625,0.00010999,2]
[332979313,1721718645580,-1796.66,0.00010999,2]
[332979314,1721718645589,-1796.66,0.00010999,2]
[332979315,1721718645598,-1796.66,0.00010999,2]
[332979316,1721718645607,-1796.66,0.00010999,2]
[332979317,1721718645616,-1796.66,0.00010999,2]
[332979318,1721718645625,-791.68243043,0.00010999,2]
[332979319,1721718645641,-1005.13756957,0.00010999,2]
[332979320,1721718645650,-20.11583332,0.00010999,2]
[332979321,1721718645661,-346.43254678,0.00010999,2]
[332979322,1721718645671,-313.75745322,0.00010999,2]
[332979323,1721718645682,-1074.42254678,0.00010999,2]
[332979324,1721718645691,-1130.03168969,0.00010999,2]
[332979325,1721718645703,-258.14831031,0.00010999,2]
[332979326,1721718645712,-1388.18,0.00010999,2]
[332979327,1721718645721,-1388.18,0.00010999,2]
[332979328,1721718645730,-1388.18,0.00010999,2]
[332979329,1721718645739,-1388.18,0.00010999,2]
[332979330,1721718645748,-500.0,0.00010999,2]
[332979331,1721718645759,-1388.18,0.00010999,2]
[332979332,1721718645768,-1314.47761299,0.00010999,2]
[332979333,1721718645783,-73.70238701,0.00010999,2]
[332979334,1721718645793,-500.0,0.00010999,2]
[332979335,1721718645802,-1388.18,0.00010999,2]
[332979336,1721718645811,-500.0,0.00010999,2]
[332979337,1721718645821,-151.0,0.00010999,2]
[332979338,1721718645830,-500.0,0.00010999,2]
[332979339,1721718645839,-1388.18,0.00010999,2]
[332979340,1721718645848,-500.0,0.00010999,2]
[332979341,1721718645859,-1388.18,0.00010999,2]
[332979342,1721718645868,-151.0,0.00010999,2]
[332979343,1721718645878,-500.0,0.00010999,2]
[332979344,1721718645887,-1388.18,0.00010999,2]
[332979345,1721718645896,-500.0,0.00010999,2]
[332979346,1721718645906,-500.0,0.00010999,2]
[332979347,1721718645915,-1285.24134513,0.00010999,2]
[332979351,1721718646506,-102.93865487,0.00010999,2]
[332979352,1721718646516,-500.0,0.00010999,2]
[332979353,1721718646525,-970.64485661,0.00010999,2]
[332979354,1721718646536,-417.53514339,0.00010999,2]
[332979355,1721718646545,-640.65117722,0.00010999,2]
[332979356,1721718646557,-384.50318454,0.00010999,2]
[332979358,1721718646602,-363.02563824,0.00010999,2]
[332979359,1721718646613,-500.0,0.00010999,2]
[332979360,1721718646624,-1388.18,0.00010999,2]
[332979361,1721718646634,-393.93078958,0.00010999,2]
[332979362,1721718646645,-106.06921042,0.00010999,2]
[332979364,1721718646654,-239.10696233,0.00010999,2]
[332979366,1721718646666,-333.605,0.00010999,2]
[332979370,1721718646697,-369.15130269,0.00010999,2]
[332979379,1721718665686,267.43991196,7.024e-05,2]
[332979380,1721718667041,369.78252598,7.024e-05,2]
[332979381,1721718667929,155.8263988,7.024e-05,2]
[332979383,1721718678956,621.55087731,7.024e-05,2]
[332979384,1721718680830,155.21184827,7.024e-05,2]
[332979385,1721718683775,159.01791684,7.024e-05,2]
[332979386,1721718683814,164.18426229,7.024e-05,2]